Cogmind - Beta 15 @@@ ROGUE MODE // 2025.08.14 @ 17:51:06 Player: Skysub Result: Destroyed by O8-YI3(R) with Subdweller Machine Gun Performance ------------- Evolutions (0) 0 Regions Visited (2) 400 Robots Destroyed (34) 170 Value Destroyed (860) 860 Prototype IDs (0) 0 Alien Tech Used (0) 0 Bonus (0) 0 TOTAL SCORE: 1430 Bonus ------- None Cogmind --------- Core Integrity 0/250 Matter 142/300 Energy 122/125 System Corruption 0% Temperature Cool (0) Movement Treading (360) Ox2 Location -10/Subcaves Parts ------- > --- POWER (1) -------- Light Ion Engine > --- PROPULSION (2) --- Spiked Treads Compact Wheel > --- UTILITY (2) ------ High-capacity Storage Unit Medium Armor Plating > --- WEAPON (2) ------- Battle Rifle Improved Light Cannon > --- INVENTORY (20) --- Subdweller Power Source Light Treads Light Treads Light Treads Subdweller Monowheel Subdweller Monowheel Subdweller Optics Subdweller Optics Seismic Detector Improved Targeting Computer Improved Targeting Computer Medium Armor Plating Makeshift Light Armor Plating Subdweller Laser Assault Rifle Battle Rifle Rocket Launcher Rocket Launcher Rocket Launcher Mining Laser Peak State ------------ > --- POWER ------------ Makeshift Power Source > --- PROPULSION ------- Light Treads Wheel > --- UTILITY ---------- High-capacity Storage Unit Medium Armor Plating > --- WEAPON ----------- Assault Rifle Assault Rifle > --- INVENTORY -------- Light Ion Engine Light Treads Light Treads Light Treads Light Treads Compact Wheel Subdweller Monowheel Seismic Detector Improved Targeting Computer Improved Targeting Computer Propulsion Shielding Medium Armor Plating Medium Armor Plating Medium Armor Plating Subdweller Laser Improved Light Cannon Rocket Launcher Rocket Launcher Rocket Launcher Mining Laser [Rating: 14] Favorites ----------- Power Light Ion Engine Engine Light Ion Engine Propulsion Light Treads Treads Light Treads Wheel Compact Wheel Utility High-capacity Storage Unit Storage High-capacity Storage Unit Protection Medium Armor Plating Weapon Assault Rifle Ballistic Gun Assault Rifle Ballistic Cannon Improved Light Cannon Launcher Rocket Launcher Special Weapon Mining Laser Build | -11 -10 -10 ------- Run | Yrd Mat Sub Slots Evolved . | . . . Power . | . . . Propulsion . | . . . Utility . | . . . Weapon . | . . . Parts Attached 25 | 5 7 13 Power 3 | . 1 2 Engine 3 | . 1 2 Core . | . . . Reactor . | . . . Propulsion 7 | 2 1 4 Treads 4 | 2 . 2 Leg . | . . . Wheel 3 | . 1 2 Hover . | . . . Flight . | . . . Utility 6 | 1 3 2 Device . | . . . Storage 3 | 1 2 . Processor . | . . . Hackware . | . . . Protection 3 | . 1 2 Artifact . | . . . Weapon 9 | 2 2 5 Energy Gun . | . . . Energy Cannon . | . . . Ballistic Gun 3 | 2 . 1 Ballistic Cannon 1 | . . 1 Launcher 4 | . 2 2 Special Weapon 1 | . . 1 Impact Weapon . | . . . Slashing Weapon . | . . . Piercing Weapon . | . . . Special Melee Weapon . | . . . Unidentified Prototypes . | . . . Parts Lost 6 | . . 6 Power 1 | . . 1 Propulsion 2 | . . 2 Utility 2 | . . 2 Weapon 1 | . . 1 Highest Loss Streak 5 | . . 5 To Critical Strikes . | . . . Average Backups 14 | 3 11 19 Power 1 | 1 1 . Propulsion 4 | 1 4 5 Utility 4 | . 3 8 Weapon 3 | . 3 5 Tool/Special . | . . . Unused Backups 15 | . 1 14 Power 1 | . . 1 Propulsion 5 | . 1 4 Utility 8 | . . 8 Weapon 1 | . . 1 Tool/Special . | . . . Average Slot Usage (%) 96 | . 95 99 Engine 12 | . 11 13 Treads 15 | . 15 14 Wheel 12 | . 12 13 Storage 18 | . 21 14 Protection 8 | . 4 14 Ballistic Gun 24 | . 27 19 Ballistic Cannon 2 | . . 5 Special Weapon 1 | . . 3 Peak Build Rating 14 | 5 11 14 Average Rating 9 | 3 7 11 On Entrance 5 | . 5 10 Naked Turns . | . . . Heaviest Build 58 | 9 56 58 Greatest Support 40 | 40 40 16 Greatest Overweight (x) 5 | . 3 5 Average Overweight (x) 2 | . 2 3 Largest Inventory Capacity 20 | 8 20 20 Average Capacity 18 | 6 18 20 Most Carried 20 | 4 20 20 Average Carried 14 | 3 11 19 Final Capacity 20 | 8 20 20 Final Carried 20 | 4 20 20 Class Distribution -------------------- 100% | Mutant Dominant Class ---------------- Mutant | -10/Materials Mutant | -10/Subcaves Resources | -11 -10 -10 ----------- Run | Yrd Mat Sub Matter Collected 941 | 202 431 308 Remotely . | . . . Salvage Created 954 | . 561 393 Parts 80 | . 55 25 Haulers Intercepted 2 | . 2 . Recyclers Shooed . | . . . Parts Field Recycled . | . . . Retrieved Matter . | . . . Parts Self-Destructed 5 | . . 5 Prevented . | . . . Kills | -11 -10 -10 ------- Run | Yrd Mat Sub Combat Hostiles Destroyed 28 | . 17 11 Guns 13 | . 9 4 Cannons 3 | . . 3 AOE 12 | . 8 4 Classes Destroyed 7 | . 6 1 Builder 1 | . 1 . Tunneler 1 | . 1 . Hauler 2 | . 2 . Watcher 2 | . 2 . Swarmer 9 | . 9 . Grunt 8 | . 8 . Subdweller 11 | . . 11 Best Kill Streak 7 | . 7 5 Combat Bots Only 6 | . 6 5 Max Kills in Single Turn 4 | . 4 2 Gunslinging . | . . . Exploded 4 | . 4 2 Melee . | . . . Uniques/NPCs Destroyed . | . . . Combat | -11 -10 -10 -------- Run | Yrd Mat Sub Hostile Shots Fired 117 | . 51 66 Missed 38 | . 14 24 Hits 79 | . 37 42 Projectile 79 | . 37 42 Damage Taken 1261 | . 401 860 Core 271 | . 46 225 Absorbed by Shields . | . . . Core Remaining (%) 100 | 100 . . Volleys Fired 98 | . 46 52 Largest 2 | . 2 2 Hottest 100 | . 50 100 Shots Fired 185 | . 90 95 Gun 142 | . 86 56 Cannon 24 | . . 24 Launcher 10 | . 4 6 Special 9 | . . 9 Kinetic 166 | . 86 80 Thermal 9 | . . 9 Explosive 10 | . 4 6 Electromagnetic . | . . . Robot Hit Streak 27 | . 9 27 Robot Miss Streak 4 | . 4 3 Penetration Max . | . . . Secondary Targets 1 | . 1 . Max Gunslinging Chain 1 | . 1 . Shots Hit Robots 121 | . 53 68 Core Hits 52 | . 29 23 Critical Kills . | . . . Critical Parts Destroyed . | . . . Critical Strikes . | . . . Melee Attacks . | . . . Impact . | . . . Slashing . | . . . Piercing . | . . . Sneak Attacks . | . . . Combat Hostiles . | . . . Follow-up Attacks . | . . . Damage Inflicted 2620 | . 1110 1510 Guns 1211 | . 647 564 Cannons 414 | . . 414 Explosions 995 | . 463 532 Melee . | . . . Ramming . | . . . Kinetic 1625 | . 647 978 Thermal . | . . . Explosive 995 | . 463 532 Electromagnetic . | . . . Impact . | . . . Slashing . | . . . Piercing . | . . . Highest Corruption . | . . . Average Corruption . | . . . Corruption Purged . | . . . Corruption Blocked . | . . . Overload Shots . | . . . Overflow Damage 64 | . 64 . Projectiles . | . . . Explosions 64 | . 64 . Melee . | . . . Knockbacks 5 | . . 5 Impact . | . . . Kinetic 5 | . . 5 Secondary . | . . . Self-Inflicted Damage . | . . . Shots . | . . . Rammed . | . . . Targets Rammed . | . . . Kicked . | . . . Crushed . | . . . Highest Temperature 10 | . 10 . Average Temperature 5 | . 5 . Received Heat Transfer 300 | . 144 156 Siege Activations . | . . . Martial Activations . | . . . Shielding Activations . | . . . Robots Disrupted . | . . . Combat Hostiles . | . . . Robots Corrupted . | . . . Combat Hostiles . | . . . Parts Fried . | . . . Impact Corruptions . | . . . Robots Melted . | . . . Combat Hostiles . | . . . Parts Melted 1 | . . 1 Heat Transferred . | . . . Parts Sabotaged . | . . . Parts Stolen . | . . . Parts Stripped . | . . . Power Chain Reactions . | . . . Alert | -11 -10 -10 ------- Run | Yrd Mat Sub Maximum Alert Level 1 | . 1 . Low Security (%) 71 | 100 69 . Level 1 28 | . 30 . Level 2 . | . . . Level 3 . | . . . Level 4 . | . . . Level 5 . | . . . High Security . | . . . Max Security . | . . . Peak Influence 259 | . 259 . Initial . | . . . Average 145 | . 154 . Influence Increases 662 | . 662 . Destroy 0b10 Robot/C 340 | . 340 . Destroy 0b10 Robot/NC 30 | . 30 . Destroy Leader 68 | . 68 . Successful Hack 13 | . 13 . Select Force Hacks 60 | . 60 . Disable Machine 15 | . 15 . Destroy Structure 31 | . 31 . Lose Combat Pursuer 105 | . 105 . Influence Decreases 662 | . 466 196 Entered New Map 95 | . . 95 Time Decay 567 | . 466 101 Squads Dispatched 4 | . 4 . Investigation 3 | . 3 . Extermination . | . . . Reinforcement 1 | . 1 . Assault . | . . . Garrison . | . . . Intercept . | . . . Searches Triggered . | . . . Construction Impeded . | . . . Haulers Reinforced . | . . . Active Scanning Responses . | . . . Cargo Convoy Interrupts . | . . . Stealth | -11 -10 -10 --------- Run | Yrd Mat Sub Distress Signals 2 | . 2 . Communications Jammed . | . . . Distress Signals . | . . . Times Spotted 37 | . 25 12 Peak Tracking Total 7 | . 7 4 Tactical Retreats 2 | . 2 . Traps | -11 -10 -10 ------- Run | Yrd Mat Sub Traps Triggered 3 | . 3 . Indirectly . | . . . Trap Hack Attempts . | . . . Triggered . | . . . Disarmed . | . . . Reprogrammed . | . . . Reused . | . . . Traps Extracted . | . . . Installed . | . . . Triggered . | . . . Machines | -11 -10 -10 ---------- Run | Yrd Mat Sub Machines Disabled 1 | . 1 . Max in Single Turn 1 | . 1 . Machines Repaired . | . . . Machines Dismantled . | . . . Machines Sabotaged . | . . . Overloaded Fab Kills . | . . . Hacking | -11 -10 -10 --------- Run | Yrd Mat Sub Machines Accessed 8 | . 8 . Terminals 6 | . 6 . Fabricators . | . . . Repair Stations . | . . . Recycling Units 2 | . 2 . Scanalyzers . | . . . Garrison Access . | . . . Total Hacks 23 | . 23 . Successful 12 | . 12 . Failed 11 | . 11 . Catastrophic 2 | . 2 . Database Lockouts . | . . . Manual 22 | . 22 . Terminals 17 | . 17 . Fabricators . | . . . Repair Stations . | . . . Recycling Units 6 | . 6 . Scanalyzers . | . . . Garrison Access . | . . . Terminal Hacks 1 | . 1 . Robot Analysis 1 | . 1 . Fabricator Hacks . | . . . Repair Station Hacks . | . . . Recycling Unit Hacks 2 | . 2 . Report Inventory 2 | . 2 . Scanalyzer . | . . . Garrison Access Hacks . | . . . Unauthorized Hacks 8 | . 8 . Terminals 6 | . 6 . Botnet 1 | . 1 . Skim 5 | . 5 . Fabricators . | . . . Repair Stations . | . . . Recycling Units 2 | . 2 . Tunnel 2 | . 2 . Scanalyzers . | . . . Garrison Access . | . . . Data Cores Recovered . | . . . Used . | . . . Hacking Detections 6 | . 6 . Full Trace Events . | . . . Feedback Events . | . . . Feedback Blocked . | . . . Robot Schematics Acquired . | . . . Robots Built . | . . . Authchips . | . . . Time . | . . . Total Robot Build Rating . | . . . Part Schematics Acquired . | . . . Parts Built . | . . . Authchips . | . . . Time . | . . . Total Part Build Rating . | . . . Parts Repaired . | . . . Time . | . . . Parts Recycled . | . . . Recycled Matter . | . . . Retrieved Matter . | . . . Retrieved Components . | . . . Parts Scanalyzed . | . . . Part Schematics Acquired . | . . . Parts Damaged . | . . . Bothacking | -11 -10 -10 ------------ Run | Yrd Mat Sub Used RIF Installer . | . . . Robots Hacked . | . . . Non-combat . | . . . Combat . | . . . Robot Hacks Applied . | . . . Relay Couplers Released . | . . . Fabnet Peak Effective % . | . . . Robots Rewired . | . . . Allies Hacked . | . . . Hacks Repelled . | . . . Allies | -11 -10 -10 -------- Run | Yrd Mat Sub Total Allies . | . . . Largest Group . | . . . Highest-Rated Group . | . . . Highest-Rated Ally . | . . . Total Orders . | . . . Ally Attacks . | . . . Total Damage . | . . . Kills . | . . . Allies Corrupted . | . . . Allies Melted . | . . . Intel | -11 -10 -10 ------- Run | Yrd Mat Sub Active Infowar (turns) . | . . . Robot Analysis Total 1 | . 1 . Derelict Logs Recovered . | . . . Drone Launches . | . . . Drone Recoveries . | . . . Exploration | -11 -10 -10 ------------- Run | Yrd Mat Sub Turns Passed 2278 | 78 1268 932 Spaces Moved 1252 | 46 708 498 Core 5 | 5 . . Treads 122 | 41 81 . Legs . | . . . Wheels 1125 | . 627 498 Hover . | . . . Flight . | . . . Fastest Speed 50 | 50 100 145 Average Speed 146 | 148 146 146 Slowest Speed 160 | 160 160 155 Overloaded Moves . | . . . Propulsion Burnouts . | . . . Robots Hopped . | . . . Potential Cave-ins . | . . . Cave-ins Triggered . | . . . Exploration Rate (%) 44 | 4 95 34 Regions Visited 2 Branch Regions 1 Pre-discovered Areas 4 | . 4 . Known Exits Taken 1 | . 1 . Unknown Exits Taken 1 | 1 . . Scrap Searched . | . . . Spaces Dug . | . . . Terrain Destroyed 81 | . 35 46 Melee . | . . . Projectile . | . . . AOE 81 | . 35 46 Terrain Rammed . | . . . Walls Destroyed . | . . . Machines Disabled . | . . . Actions | -11 -10 -10 --------- Run | Yrd Mat Sub Total 1498 | 54 849 595 Wait 78 | . 65 13 Move 1250 | 45 707 498 Hop . | . . . Pick Up 32 | 4 19 9 Fast Attach 6 | 5 1 . Attach 7 | . 1 6 Detach . | . . . Swap 17 | . 7 10 Drop 10 | . 3 7 Fire 98 | . 46 52 Melee . | . . . Ram . | . . . Kick . | . . . Crush . | . . . Escape Stasis . | . . . Rewire . | . . . Trap . | . . . Miscellaneous . | . . . Route ------- -11/Scrapyard -10/Materials (discovered 6 exits: *Mat x3 / *Min x2 / *Sub) -10/Subcaves (discovered 3 exits: *Mat x2 / Rec) History --------- Turn | Location | Event 12 | -11/Scrapyard | Discovered new exit (range 15) 79 | -11/Scrapyard | Entered Materials 140 | -10/Materials | Discovered new exit (range 6) 306 | -10/Materials | Build established: Mutant 334 | -10/Materials | Discovered new exit (range 13) 442 | -10/Materials | Discovered new exit (range 15) 721 | -10/Materials | Identified exit to Mines 816 | -10/Materials | Learned location of 2 exits from Mines 847 | -10/Materials | Identified exit to Materials 867 | -10/Materials | Learned 2 Storage zone layouts 898 | -10/Materials | Learned location of Recycling (-9) 926 | -10/Materials | Identified exit to Subcaves 962 | -10/Materials | Learned location of 2 exits from Subcaves 1347 | -10/Materials | Entered Subcaves 1348 | -10/Subcaves | Identified exit to Materials 1349 | -10/Subcaves | Identified exit to Recycling 1686 | -10/Subcaves | Core integrity fell below 50% 1725 | -10/Subcaves | Lost 5 parts (1p2n1u1w) 1836 | -10/Subcaves | Ambushed by Subdweller buried in earth 1948 | -10/Subcaves | Shifting Twisted Machinery released Piercing Trap 1975 | -10/Subcaves | Shifting Twisted Machinery released Spk. Treads 2244 | -10/Subcaves | Core integrity fell below 20% 2279 | -10/Subcaves | Destroyed by O8-YI3(R) with Subdweller Machine Gun Last Messages --------------- 01876_ Acquired 36 matter. 01879_ Acquired Sub. Power Source. 01881_ Acquired Sub. Optics. 01884_ Acquired 27 matter. Piercing Trap falls loose from the Twisted Machinery. Spk. Treads falls loose from the Twisted Machinery. 01986_ Dropped Lgt. Treads. 02202_ 73-VLK(R) knocked back. 02208_ 73-VLK(R) destroyed. 02214_ Acquired 45 matter. 02218_ Dropped Propulsion Shielding. 02225_ Med. Armor Plating destroyed. 02232_ AX-GQ9(R) destroyed. 02238_ Acquired Battle Rifle. 02250_ K7-7PZ(R) knocked back. 02253_ K7-7PZ(R) affixes Scrap Shield Fragment to Scrap Shield. 02253_ K7-7PZ(R) destroyed. 02263_ Subatomizers dissect the Disposable Heat Sink. 02266_ O8-YI3(R) affixes Scrap Shield Fragment to Scrap Shield. 02270_ O8-YI3(R) knocked back. Map ----- +----------------------------------------------------+ | ?????????????????????????????????????????????????? | | ?????????????????????????????????????????????????? | | ?????????????????????????????????????????????????? | | ?????????????????????????????????????????????????? | | ?????????????????????????????????????????????????? | | ?????????????????????????????????????????????????? | | ?????????????????????????????????????????????????? | | ?????????????????###?????????????????????????????? | | #########???????##"####??????????????????????????? | | # ## # ##??#####"" ##?????#####???????????????? | | #?## ##"" #?????# " #???????????????? | | ### ### " "#?????#""#????????????????? | | # #### " "####### #?????????????????? | | # ###??# #####"" ##" #?????????????????? | | # ?????# #####??## " " ###?????????????????? | | #??????# ###?????#"""""" ##??????????????????? | | ???????# #???????#"" " ##?????????????????? | | ??????? #???????#"""" ## #?????????????????? | | ?????? #????????"" ### #?????????????????? | | ?????#####???????""######?## #?????????????????? | | ?????????????????#?##" ?#### ##?????????????????? | | ???????????????????#"""## ##??""??????????????? | | ????????????????????#"""" ##?? ""??????????????? | | ???????????????????##" "" ##??# " ??????????????? | | ??????????????????## ##??# "##?????????????? | | ??????????????????# " !!@#### " # "?????????? | | ??????????????????#####%!| """ "?????????? | | ??????????????????????#%% !! %"" ##??????????? | | ??????????????????????#&%!%% #??????????? | | ??????????????????????##*R #?????????? | | ???????????????????????### #????????? | | ?????????????????????????# % #???????? | | ????????????????????????? % ????????? | | ????????????????????????? # ###### ????????? | | ?????????????????????????# #% #????????????????? | | ?????????????????????????### #???????????????? | | ???????????????????????????? ??????????????? | | ???????????????????????????? ?????????????? | | ????????????????????????????? #### ????????????? | | ????????????????????????????? #????#???????????? | | ?????????????????????????????# #????????????????? | | ?????????????????????????????? ????????????????? | | ?????????????????????????????? #????????????????? | | ?????????????????????????????????????????????????? | | ?????????????????????????????????????????????????? | | ?????????????????????????????????????????????????? | | ?????????????????????????????????????????????????? | | ?????????????????????????????????????????????????? | | ?????????????????????????????????????????????????? | | ?????????????????????????????????????????????????? | +----------------------------------------------------+ Best States ------------- Heat Dissipation 25 Energy Generation 15 Energy Capacity 170 Matter Stores 300 Matter Capacity 300 Sight Range 16 Terrain Scan Density 10 Armor Coverage 225 Evasion (%) 40 Recoil Reduction 2 Item Schematics ----------------- None Robot Schematics ------------------ None Fabricated ------------ Nothing Repaired ---------- Nothing Alien Tech Used ----------------- None Achievements -------------- None Challenges ------------ None Game ------ Seed SchematicWeightBoregun Manual? 0 Play Time 00:16:18 Cumulative 249.6 hours Start 2025.08.14 @ 17:39:33 End 2025.08.14 @ 17:51:06 Sessions 1 Manual Loads 0 Difficulty Rogue Special Mode None Game No. 267 Rogue 267 Adventurer 0 Explorer 0 Win Type - Total 11 Types 5/0/3/1/0/0/0/1/0/1 Lore% 75 Gallery% 73 Achievement% 66 Wizard Run 0 Options --------- Layout 1 ASCII 0 Keyboard 1 Movement Numpad Keybinds 0 Fullscreen 1 Font 32/SmallcapsGlow Map View 77x35 Zoom Use 0% Tactical HUD 1 Map Filters NONE Filters NONE Steam 1 RUN: 9a802ce4-19f0-4105-8f88-cad1c98705b9